[Event "Titled Tuesday Blitz October 31 Late 2023"]
[White "Sjugirov, Sanan"]
[Black "Gokerkan, Cem Kaan"]
[WhiteFideId "4189302"]
[BlackFideId "6336760"]
[WhiteElo "2945"]
[BlackElo "2867"]
[Result "0-1"]
[Round "9"]
[TimeControl "180+1"]
[Date "2023.10.31"]
[WhiteClock "0:00:00"]
[BlackClock "0:00:04"]
[Board "10"]

1. d4 {[%clk 0:02:57]}  Nf6 {[%clk 0:02:59]} 2. c4 {[%clk 0:02:57]}  e6 {[%clk 0:03:00]} 3. Nf3 {[%clk 0:02:57]}  b6 {[%clk 0:03:00]} 4. g3 {[%clk 0:02:57]}  Ba6 {[%clk 0:03:01]} 5. b3 {[%clk 0:02:56]}  Bb4+ {[%clk 0:03:00]} 6. Bd2 {[%clk 0:02:57]}  Be7 {[%clk 0:03:00]} 7. Bg2 {[%clk 0:02:57]}  c6 {[%clk 0:03:00]} 8. Bc3 {[%clk 0:02:56]}  d5 {[%clk 0:03:00]} 9. Nbd2 {[%clk 0:02:57]}  O-O {[%clk 0:02:57]} 10. Qc2 {[%clk 0:02:57]}  Nbd7 {[%clk 0:02:56]} 11. e4 {[%clk 0:02:55]}  dxe4 {[%clk 0:02:37]} 12. Nxe4 {[%clk 0:02:54]}  Nxe4 {[%clk 0:02:36]} 13. Qxe4 {[%clk 0:02:55]}  c5 {[%clk 0:02:36]} 14. O-O {[%clk 0:02:51]}  Nf6 {[%clk 0:02:33]} 15. Qe2 {[%clk 0:02:51]}  Bb7 {[%clk 0:02:30]} 16. Rfd1 {[%clk 0:02:50]}  Qc7 {[%clk 0:02:24]} 17. dxc5 {[%clk 0:02:45]}  Bxc5 {[%clk 0:02:24]} 18. Bxf6 {[%clk 0:02:43]}  gxf6 {[%clk 0:02:25]} 19. Ne1 {[%clk 0:02:26]}  Rad8 {[%clk 0:02:10]} 20. Bxb7 {[%clk 0:02:25]}  Qxb7 {[%clk 0:02:11]} 21. Ng2 {[%clk 0:02:23]}  f5 {[%clk 0:02:07]} 22. Nf4 {[%clk 0:02:23]}  Qe4 {[%clk 0:02:00]} 23. Qh5 {[%clk 0:02:00]}  Bd4 {[%clk 0:01:11]} 24. Qg5+ {[%clk 0:01:45]}  Kh8 {[%clk 0:01:11]} 25. Rac1 {[%clk 0:01:38]}  Rg8 {[%clk 0:01:08]} 26. Qh4 {[%clk 0:01:30]}  Rd6 {[%clk 0:00:37]} 27. Rd2 {[%clk 0:01:23]}  e5 {[%clk 0:00:33]} 28. Ng2 {[%clk 0:01:07]}  Qf3 {[%clk 0:00:22]} 29. Qe7 {[%clk 0:00:58]}  Rh6 {[%clk 0:00:23]} 30. Re1 {[%clk 0:00:28]}  Qh5 {[%clk 0:00:22]} 31. h4 {[%clk 0:00:27]}  f4 {[%clk 0:00:23]} 32. Rxd4 {[%clk 0:00:16]}  exd4 {[%clk 0:00:24]} 33. Nxf4 {[%clk 0:00:16]}  Qxh4 {[%clk 0:00:18]} 34. Qe5+ {[%clk 0:00:13]}  Qf6 {[%clk 0:00:18]} 35. Qe4 {[%clk 0:00:12]}  Rh4 {[%clk 0:00:15]} 36. Kf1 {[%clk 0:00:09]}  Rhg4 {[%clk 0:00:13]} 37. Qf3 {[%clk 0:00:08]}  R4g5 {[%clk 0:00:11]} 38. Re4 {[%clk 0:00:06]}  Rd8 {[%clk 0:00:10]} 39. Qd3 {[%clk 0:00:05]}  Re5 {[%clk 0:00:09]} 40. Nd5 {[%clk 0:00:05]}  Qf5 {[%clk 0:00:08]} 41. Rxd4 {[%clk 0:00:04]}  Qxd3+ {[%clk 0:00:08]} 42. Rxd3 {[%clk 0:00:05]}  b5 {[%clk 0:00:07]} 43. Kg2 {[%clk 0:00:04]}  bxc4 {[%clk 0:00:08]} 44. bxc4 {[%clk 0:00:05]}  Kg7 {[%clk 0:00:08]} 45. Ra3 {[%clk 0:00:05]}  Rd7 {[%clk 0:00:07]} 46. Ne3 {[%clk 0:00:05]}  Rc5 {[%clk 0:00:07]} 47. Ra6 {[%clk 0:00:04]}  Rb7 {[%clk 0:00:05]} 48. Kf3 {[%clk 0:00:04]}  Kf8 {[%clk 0:00:04]} 49. Kf4 {[%clk 0:00:03]}  Ke8 {[%clk 0:00:05]} 50. g4 {[%clk 0:00:03]}  Rcc7 {[%clk 0:00:03]} 51. Rh6 {[%clk 0:00:03]}  Rb2 {[%clk 0:00:03]} 52. a4 {[%clk 0:00:03]}  Rxf2+ {[%clk 0:00:03]} 53. Kg3 {[%clk 0:00:02]}  Ra2 {[%clk 0:00:03]} 54. a5 {[%clk 0:00:02]}  Rxa5 {[%clk 0:00:03]} 55. Rxh7 {[%clk 0:00:03]}  Ra3 {[%clk 0:00:03]} 56. Kf4 {[%clk 0:00:03]}  a5 {[%clk 0:00:01]} 57. Rh8+ {[%clk 0:00:03]}  Kd7 {[%clk 0:00:02]} 58. Ra8 {[%clk 0:00:03]}  a4 {[%clk 0:00:02]} 59. g5 {[%clk 0:00:03]}  Kd6 {[%clk 0:00:02]} 60. Ke4 {[%clk 0:00:03]}  Kc5 {[%clk 0:00:03]} 61. Nd5 {[%clk 0:00:02]}  Rc6 {[%clk 0:00:03]} 62. Ne3 {[%clk 0:00:01]}  Re6+ {[%clk 0:00:03]} 63. Kf4 {[%clk 0:00:00]}  Rexe3 {[%clk 0:00:04]} 0-1


[Site "https://www.chess.com"]

[Event "Titled Tuesday Blitz October 31 Late 2023"]
[White "Alexandre, Anne Shopie Elizabeth"]
[Black "Chigaev, Maksim"]
[WhiteFideId "11902418"]
[BlackFideId "4108116"]
[WhiteElo "2848"]
[BlackElo "2941"]
[Result "1-0"]
[Round "9"]
[TimeControl "180+1"]
[Date "2023.10.31"]
[WhiteClock "0:00:10"]
[BlackClock "0:00:00"]
[Board "11"]

1. e4 {[%clk 0:03:00]}  c5 {[%clk 0:02:57]} 2. Nf3 {[%clk 0:03:01]}  d6 {[%clk 0:02:57]} 3. Bb5+ {[%clk 0:03:01]}  Bd7 {[%clk 0:02:55]} 4. Bxd7+ {[%clk 0:03:01]}  Qxd7 {[%clk 0:02:56]} 5. c4 {[%clk 0:02:59]}  e5 {[%clk 0:02:57]} 6. Nc3 {[%clk 0:02:58]}  Nc6 {[%clk 0:02:57]} 7. d3 {[%clk 0:02:58]}  f5 {[%clk 0:02:57]} 8. exf5 {[%clk 0:02:52]}  Qxf5 {[%clk 0:02:58]} 9. O-O {[%clk 0:02:52]}  Nf6 {[%clk 0:02:55]} 10. Ng5 {[%clk 0:02:51]}  h6 {[%clk 0:02:50]} 11. Nge4 {[%clk 0:02:51]}  Be7 {[%clk 0:02:49]} 12. Be3 {[%clk 0:02:51]}  O-O {[%clk 0:02:46]} 13. Nxf6+ {[%clk 0:02:51]}  Bxf6 {[%clk 0:02:46]} 14. Ne4 {[%clk 0:02:51]}  Rad8 {[%clk 0:02:46]} 15. Qb3 {[%clk 0:02:50]}  b6 {[%clk 0:02:39]} 16. f4 {[%clk 0:02:42]}  exf4 {[%clk 0:02:30]} 17. Rxf4 {[%clk 0:02:42]}  Qe6 {[%clk 0:02:24]} 18. Raf1 {[%clk 0:02:35]}  Bd4 {[%clk 0:01:53]} 19. Rxf8+ {[%clk 0:02:34]}  Rxf8 {[%clk 0:01:53]} 20. Rxf8+ {[%clk 0:02:34]}  Kxf8 {[%clk 0:01:54]} 21. Bxd4 {[%clk 0:02:34]}  Nxd4 {[%clk 0:01:54]} 22. Qa4 {[%clk 0:02:27]}  a5 {[%clk 0:01:39]} 23. Qd1 {[%clk 0:02:25]}  d5 {[%clk 0:01:36]} 24. cxd5 {[%clk 0:02:23]}  Qxd5 {[%clk 0:01:36]} 25. b3 {[%clk 0:02:20]}  Ne6 {[%clk 0:01:26]} 26. g3 {[%clk 0:02:20]}  Ke7 {[%clk 0:01:23]} 27. Qe2 {[%clk 0:02:18]}  Qe5 {[%clk 0:01:23]} 28. Kg2 {[%clk 0:02:17]}  Nd4 {[%clk 0:01:20]} 29. Qf2 {[%clk 0:02:14]}  Qf5 {[%clk 0:01:10]} 30. Qe3 {[%clk 0:02:07]}  Kd7 {[%clk 0:01:10]} 31. h4 {[%clk 0:02:00]}  Qg4 {[%clk 0:01:05]} 32. Nf2 {[%clk 0:01:56]}  Qe6 {[%clk 0:00:59]} 33. Qf4 {[%clk 0:01:53]}  Kc6 {[%clk 0:00:56]} 34. Ne4 {[%clk 0:01:51]}  a4 {[%clk 0:00:53]} 35. Qf8 {[%clk 0:01:33]}  axb3 {[%clk 0:00:50]} 36. axb3 {[%clk 0:01:34]}  Qxb3 {[%clk 0:00:49]} 37. Qe8+ {[%clk 0:01:22]}  Kc7 {[%clk 0:00:45]} 38. Qe7+ {[%clk 0:01:20]}  Kb8 {[%clk 0:00:45]} 39. Qf8+ {[%clk 0:00:50]}  Ka7 {[%clk 0:00:45]} 40. Qxg7+ {[%clk 0:00:50]}  Ka6 {[%clk 0:00:38]} 41. Qxh6 {[%clk 0:00:50]}  Ne6 {[%clk 0:00:32]} 42. h5 {[%clk 0:00:45]}  Qd5 {[%clk 0:00:32]} 43. Qf6 {[%clk 0:00:41]}  c4 {[%clk 0:00:27]} 44. h6 {[%clk 0:00:29]}  cxd3 {[%clk 0:00:26]} 45. Qf3 {[%clk 0:00:15]}  d2 {[%clk 0:00:23]} 46. Nc3 {[%clk 0:00:16]}  Qd8 {[%clk 0:00:05]} 47. Qe2+ {[%clk 0:00:14]}  Kb7 {[%clk 0:00:01]} 48. Qxe6 {[%clk 0:00:14]}  Qd3 {[%clk 0:00:00]} 49. Nd1 {[%clk 0:00:10]} 1-0


[Site "https://www.chess.com"]

[Event "Titled Tuesday Blitz October 31 Late 2023"]
[White "Cordova, Emilio"]
[Black "Brodsky, David"]
[WhiteFideId "3801497"]
[BlackFideId "2073250"]
[WhiteElo "2922"]
[BlackElo "2825"]
[Result "1-0"]
[Round "9"]
[TimeControl "180+1"]
[Date "2023.10.31"]
[WhiteClock "0:00:52"]
[BlackClock "0:00:00"]
[Board "13"]

1. d4 {[%clk 0:02:35]}  Nf6 {[%clk 0:02:58]} 2. Bg5 {[%clk 0:02:34]}  Ne4 {[%clk 0:02:54]} 3. h4 {[%clk 0:02:34]}  d5 {[%clk 0:02:51]} 4. Nd2 {[%clk 0:02:33]}  Bf5 {[%clk 0:02:51]} 5. Nxe4 {[%clk 0:02:32]}  Bxe4 {[%clk 0:02:52]} 6. f3 {[%clk 0:02:33]}  h6 {[%clk 0:02:51]} 7. Bf4 {[%clk 0:02:30]}  Bh7 {[%clk 0:02:51]} 8. e3 {[%clk 0:02:30]}  e6 {[%clk 0:02:50]} 9. Bd3 {[%clk 0:02:29]}  Bxd3 {[%clk 0:02:42]} 10. Qxd3 {[%clk 0:02:28]}  c5 {[%clk 0:02:42]} 11. c3 {[%clk 0:02:24]}  Nc6 {[%clk 0:02:41]} 12. Ne2 {[%clk 0:02:22]}  Bd6 {[%clk 0:02:19]} 13. dxc5 {[%clk 0:02:19]}  Bxc5 {[%clk 0:02:15]} 14. Nd4 {[%clk 0:02:14]}  O-O {[%clk 0:02:11]} 15. Nxc6 {[%clk 0:01:54]}  bxc6 {[%clk 0:02:10]} 16. O-O-O {[%clk 0:01:54]}  Qe7 {[%clk 0:01:48]} 17. e4 {[%clk 0:01:51]}  Rfd8 {[%clk 0:01:21]} 18. Kb1 {[%clk 0:01:47]}  e5 {[%clk 0:01:10]} 19. Bc1 {[%clk 0:01:43]}  Rab8 {[%clk 0:01:08]} 20. g4 {[%clk 0:01:41]}  a5 {[%clk 0:00:51]} 21. g5 {[%clk 0:01:38]}  h5 {[%clk 0:00:50]} 22. g6 {[%clk 0:01:38]}  fxg6 {[%clk 0:00:47]} 23. exd5 {[%clk 0:01:36]}  Qf7 {[%clk 0:00:36]} 24. Qe4 {[%clk 0:01:20]}  Rxd5 {[%clk 0:00:32]} 25. Rxd5 {[%clk 0:01:19]}  Qxd5 {[%clk 0:00:31]} 26. Qxg6 {[%clk 0:01:19]}  Qxf3 {[%clk 0:00:29]} 27. Qe6+ {[%clk 0:00:56]}  Kh7 {[%clk 0:00:21]} 28. Re1 {[%clk 0:00:56]}  Qxc3 {[%clk 0:00:17]} 29. Qf5+ {[%clk 0:00:52]}  Kg8 {[%clk 0:00:14]} 30. Rxe5 {[%clk 0:00:52]}  Bf8 {[%clk 0:00:00]} 31. Qe6+ {[%clk 0:00:52]} 1-0


[Site "https://www.chess.com"]

[Event "Titled Tuesday Blitz October 31 Late 2023"]
[White "Zhigalko, Sergei"]
[Black "Korpics, Zsolt"]
[WhiteFideId "13502956"]
[BlackFideId "705241"]
[WhiteElo "2913"]
[BlackElo "2447"]
[Result "1-0"]
[Round "9"]
[TimeControl "180+1"]
[Date "2023.10.31"]
[WhiteClock "0:00:15"]
[BlackClock "0:00:11"]
[Board "15"]

1. e4 {[%clk 0:03:00]}  c5 {[%clk 0:02:59]} 2. Nf3 {[%clk 0:03:01]}  e6 {[%clk 0:02:59]} 3. c3 {[%clk 0:03:01]}  Nf6 {[%clk 0:02:57]} 4. e5 {[%clk 0:03:01]}  Nd5 {[%clk 0:02:58]} 5. Bc4 {[%clk 0:03:02]}  Nb6 {[%clk 0:02:56]} 6. Bb3 {[%clk 0:03:02]}  d5 {[%clk 0:02:46]} 7. d4 {[%clk 0:03:02]}  cxd4 {[%clk 0:02:46]} 8. cxd4 {[%clk 0:03:02]}  Nc6 {[%clk 0:02:42]} 9. Nc3 {[%clk 0:02:59]}  Be7 {[%clk 0:02:39]} 10. O-O {[%clk 0:02:59]}  Bd7 {[%clk 0:02:37]} 11. Bc2 {[%clk 0:02:58]}  Nb4 {[%clk 0:02:34]} 12. Bb1 {[%clk 0:02:58]}  Rc8 {[%clk 0:02:31]} 13. a3 {[%clk 0:02:51]}  Nc6 {[%clk 0:02:29]} 14. Re1 {[%clk 0:02:47]}  a5 {[%clk 0:02:20]} 15. Bc2 {[%clk 0:02:32]}  Na7 {[%clk 0:02:15]} 16. Bd3 {[%clk 0:02:19]}  Nc4 {[%clk 0:02:02]} 17. Nd2 {[%clk 0:02:11]}  b5 {[%clk 0:02:01]} 18. Qg4 {[%clk 0:02:09]}  g6 {[%clk 0:01:59]} 19. Nf3 {[%clk 0:02:05]}  Qb6 {[%clk 0:01:52]} 20. Ne2 {[%clk 0:01:48]}  a4 {[%clk 0:01:43]} 21. Rb1 {[%clk 0:01:41]}  Na5 {[%clk 0:01:42]} 22. Bh6 {[%clk 0:01:33]}  Nb3 {[%clk 0:01:31]} 23. Qf4 {[%clk 0:01:30]}  Nc6 {[%clk 0:01:26]} 24. Rbd1 {[%clk 0:01:17]}  b4 {[%clk 0:01:23]} 25. Ng5 {[%clk 0:00:51]}  Bxg5 {[%clk 0:01:03]} 26. Bxg5 {[%clk 0:00:50]}  Nbxd4 {[%clk 0:00:59]} 27. Nxd4 {[%clk 0:00:48]}  Qxd4 {[%clk 0:00:48]} 28. Qf6 {[%clk 0:00:47]}  Rg8 {[%clk 0:00:41]} 29. Ba6 {[%clk 0:00:26]}  Qb6 {[%clk 0:00:41]} 30. Bxc8 {[%clk 0:00:26]}  Bxc8 {[%clk 0:00:41]} 31. Rc1 {[%clk 0:00:26]}  Kf8 {[%clk 0:00:14]} 32. Bh6+ {[%clk 0:00:23]}  Ke8 {[%clk 0:00:14]} 33. Bg5 {[%clk 0:00:24]}  Kf8 {[%clk 0:00:14]} 34. Rxc6 {[%clk 0:00:15]}  Qxc6 {[%clk 0:00:15]} 35. Qd8+ {[%clk 0:00:14]}  Qe8 {[%clk 0:00:15]} 36. Bh6+ {[%clk 0:00:14]}  Rg7 {[%clk 0:00:11]} 37. Bxg7+ {[%clk 0:00:15]} 1-0


[Site "https://www.chess.com"]

[Event "Titled Tuesday Blitz October 31 Late 2023"]
[White "Rohan, Ahuja"]
[Black "Sokolovsky, Yahli"]
[WhiteFideId "5090598"]
[BlackFideId "2820242"]
[WhiteElo "2720"]
[BlackElo "2799"]
[Result "0-1"]
[Round "9"]
[TimeControl "180+1"]
[Date "2023.10.31"]
[WhiteClock "0:00:00"]
[BlackClock "0:00:10"]
[Board "18"]

1. Nf3 {[%clk 0:03:00]}  d6 {[%clk 0:03:00]} 2. d4 {[%clk 0:02:59]}  g6 {[%clk 0:03:00]} 3. b3 {[%clk 0:02:57]}  Bg7 {[%clk 0:03:00]} 4. Bb2 {[%clk 0:02:58]}  c5 {[%clk 0:02:54]} 5. g3 {[%clk 0:02:57]}  Nc6 {[%clk 0:02:52]} 6. Bg2 {[%clk 0:02:54]}  cxd4 {[%clk 0:02:44]} 7. Nxd4 {[%clk 0:02:54]}  Nxd4 {[%clk 0:02:45]} 8. Bxd4 {[%clk 0:02:53]}  Qa5+ {[%clk 0:02:46]} 9. c3 {[%clk 0:02:48]}  Nf6 {[%clk 0:02:46]} 10. O-O {[%clk 0:02:44]}  O-O {[%clk 0:02:47]} 11. c4 {[%clk 0:02:41]}  Qh5 {[%clk 0:02:46]} 12. e3 {[%clk 0:02:24]}  Bg4 {[%clk 0:02:42]} 13. f3 {[%clk 0:02:08]}  Bh3 {[%clk 0:02:39]} 14. e4 {[%clk 0:01:51]}  Bxg2 {[%clk 0:02:10]} 15. Kxg2 {[%clk 0:01:52]}  a6 {[%clk 0:02:10]} 16. Nc3 {[%clk 0:01:44]}  b5 {[%clk 0:02:08]} 17. cxb5 {[%clk 0:01:43]}  axb5 {[%clk 0:02:09]} 18. g4 {[%clk 0:01:23]}  Qg5 {[%clk 0:02:10]} 19. h4 {[%clk 0:01:11]}  Qxh4 {[%clk 0:02:10]} 20. Nxb5 {[%clk 0:00:38]}  Rfc8 {[%clk 0:02:10]} 21. a4 {[%clk 0:00:33]}  Rab8 {[%clk 0:01:52]} 22. Qe2 {[%clk 0:00:33]}  Rxb5 {[%clk 0:01:20]} 23. axb5 {[%clk 0:00:29]}  Nxg4 {[%clk 0:01:03]} 24. fxg4 {[%clk 0:00:30]}  Bxd4 {[%clk 0:01:01]} 25. Rac1 {[%clk 0:00:29]}  Ra8 {[%clk 0:00:55]} 26. Rh1 {[%clk 0:00:10]}  Qg5 {[%clk 0:00:55]} 27. Rc2 {[%clk 0:00:10]}  Ra3 {[%clk 0:00:44]} 28. Qf3 {[%clk 0:00:06]}  Qxb5 {[%clk 0:00:32]} 29. Qh3 {[%clk 0:00:06]}  Qb7 {[%clk 0:00:21]} 30. Qxh7+ {[%clk 0:00:05]}  Kf8 {[%clk 0:00:22]} 31. Qh6+ {[%clk 0:00:05]}  Bg7 {[%clk 0:00:22]} 32. Qe3 {[%clk 0:00:05]}  Rxb3 {[%clk 0:00:17]} 33. Rc8+ {[%clk 0:00:03]}  Qxc8 {[%clk 0:00:18]} 34. Qxb3 {[%clk 0:00:04]}  Qxg4+ {[%clk 0:00:17]} 35. Kf1 {[%clk 0:00:04]}  Bd4 {[%clk 0:00:12]} 36. Qd3 {[%clk 0:00:00]}  Be5 {[%clk 0:00:10]} 0-1


[Site "https://www.chess.com"]

[Event "Titled Tuesday Blitz October 31 Late 2023"]
[White "DopplerCharlotteDeWitte"]
[Black "Bjelobrk, Igor"]
[BlackFideId "4300726"]
[WhiteElo "2757"]
[BlackElo "2634"]
[Result "0-1"]
[Round "9"]
[TimeControl "180+1"]
[Date "2023.10.31"]
[WhiteClock "0:01:19"]
[BlackClock "0:01:25"]
[Board "20"]

1. e4 {[%clk 0:03:00]}  e6 {[%clk 0:02:59]} 2. d4 {[%clk 0:02:59]}  d5 {[%clk 0:02:59]} 3. Nc3 {[%clk 0:03:00]}  Bb4 {[%clk 0:02:59]} 4. Ne2 {[%clk 0:03:00]}  dxe4 {[%clk 0:02:57]} 5. a3 {[%clk 0:03:00]}  Bxc3+ {[%clk 0:02:56]} 6. Nxc3 {[%clk 0:03:01]}  Nc6 {[%clk 0:02:56]} 7. Bf4 {[%clk 0:02:59]}  Nf6 {[%clk 0:02:45]} 8. Bb5 {[%clk 0:02:59]}  Bd7 {[%clk 0:02:43]} 9. d5 {[%clk 0:02:57]}  exd5 {[%clk 0:02:40]} 10. Nxd5 {[%clk 0:02:58]}  Nxd5 {[%clk 0:02:37]} 11. Qxd5 {[%clk 0:02:59]}  O-O {[%clk 0:02:37]} 12. O-O-O {[%clk 0:02:51]}  Bg4 {[%clk 0:02:25]} 13. Rd2 {[%clk 0:02:39]}  Qxd5 {[%clk 0:02:23]} 14. Rxd5 {[%clk 0:02:40]}  Rad8 {[%clk 0:02:22]} 15. Bxc6 {[%clk 0:02:28]}  bxc6 {[%clk 0:02:21]} 16. Ra5 {[%clk 0:02:29]}  Ra8 {[%clk 0:02:02]} 17. Re1 {[%clk 0:02:26]}  f5 {[%clk 0:02:01]} 18. Re3 {[%clk 0:01:55]}  a6 {[%clk 0:01:59]} 19. Rc3 {[%clk 0:01:50]}  Rf6 {[%clk 0:01:58]} 20. Bxc7 {[%clk 0:01:47]}  f4 {[%clk 0:01:49]} 21. Be5 {[%clk 0:01:43]}  Rf5 {[%clk 0:01:46]} 22. f3 {[%clk 0:01:35]}  exf3 {[%clk 0:01:38]} 23. gxf3 {[%clk 0:01:36]}  Bh5 {[%clk 0:01:35]} 24. Rxc6 {[%clk 0:01:28]}  Bxf3 {[%clk 0:01:29]} 25. Rc7 {[%clk 0:01:28]}  Rg5 {[%clk 0:01:26]} 26. Bxf4 {[%clk 0:01:19]}  Rxa5 {[%clk 0:01:25]} 0-1


[Site "https://www.chess.com"]

[Event "Titled Tuesday Blitz October 31 Late 2023"]
[White "Karamsetty, Jeevan"]
[Black "Schnaider, Ilan"]
[WhiteFideId "2025337"]
[BlackFideId "169013"]
[WhiteElo "2623"]
[BlackElo "2746"]
[Result "0-1"]
[Round "9"]
[TimeControl "180+1"]
[Date "2023.10.31"]
[WhiteClock "0:00:07"]
[BlackClock "0:00:06"]
[Board "21"]

1. e4 {[%clk 0:03:00]}  c5 {[%clk 0:03:00]} 2. Nc3 {[%clk 0:03:00]}  d6 {[%clk 0:02:59]} 3. Nf3 {[%clk 0:02:59]}  Nf6 {[%clk 0:02:58]} 4. e5 {[%clk 0:02:59]}  dxe5 {[%clk 0:02:58]} 5. Nxe5 {[%clk 0:03:00]}  e6 {[%clk 0:02:56]} 6. g3 {[%clk 0:02:57]}  Nbd7 {[%clk 0:02:55]} 7. Nf3 {[%clk 0:02:55]}  Be7 {[%clk 0:02:54]} 8. Bg2 {[%clk 0:02:55]}  O-O {[%clk 0:02:55]} 9. d3 {[%clk 0:02:53]}  Nd5 {[%clk 0:02:45]} 10. O-O {[%clk 0:02:50]}  N7f6 {[%clk 0:02:44]} 11. Ne4 {[%clk 0:02:44]}  Qb6 {[%clk 0:02:16]} 12. Qe2 {[%clk 0:02:37]}  Rd8 {[%clk 0:02:14]} 13. c3 {[%clk 0:02:27]}  Bd7 {[%clk 0:02:10]} 14. Ne5 {[%clk 0:02:20]}  Bc6 {[%clk 0:02:07]} 15. Ng5 {[%clk 0:02:08]}  Be8 {[%clk 0:01:58]} 16. Re1 {[%clk 0:01:47]}  h6 {[%clk 0:01:54]} 17. Ne4 {[%clk 0:01:42]}  Rac8 {[%clk 0:01:51]} 18. h4 {[%clk 0:01:38]}  Nxe4 {[%clk 0:01:49]} 19. Bxe4 {[%clk 0:01:36]}  Nf6 {[%clk 0:01:49]} 20. Nc4 {[%clk 0:01:36]}  Qa6 {[%clk 0:01:47]} 21. Bg2 {[%clk 0:01:32]}  Bc6 {[%clk 0:01:47]} 22. Bf4 {[%clk 0:01:28]}  Bxg2 {[%clk 0:01:46]} 23. Kxg2 {[%clk 0:01:28]}  Nd5 {[%clk 0:01:44]} 24. Bd2 {[%clk 0:01:21]}  Bf6 {[%clk 0:01:42]} 25. a4 {[%clk 0:01:16]}  Ne7 {[%clk 0:01:39]} 26. Red1 {[%clk 0:01:10]}  Rd7 {[%clk 0:01:24]} 27. Bf4 {[%clk 0:01:01]}  Rcd8 {[%clk 0:01:23]} 28. Be5 {[%clk 0:00:59]}  Bxe5 {[%clk 0:01:01]} 29. Nxe5 {[%clk 0:01:00]}  Rd5 {[%clk 0:01:01]} 30. Kg1 {[%clk 0:00:42]}  Qd6 {[%clk 0:00:53]} 31. Nc4 {[%clk 0:00:42]}  Qd7 {[%clk 0:00:51]} 32. Ne5 {[%clk 0:00:35]}  Qc7 {[%clk 0:00:51]} 33. Nc4 {[%clk 0:00:33]}  Nf5 {[%clk 0:00:47]} 34. Rd2 {[%clk 0:00:27]}  b6 {[%clk 0:00:40]} 35. Rad1 {[%clk 0:00:27]}  a6 {[%clk 0:00:40]} 36. Ne3 {[%clk 0:00:26]}  Re5 {[%clk 0:00:36]} 37. Qf3 {[%clk 0:00:19]}  Nxe3 {[%clk 0:00:24]} 38. fxe3 {[%clk 0:00:20]}  Rf5 {[%clk 0:00:20]} 39. Qg4 {[%clk 0:00:17]}  h5 {[%clk 0:00:20]} 40. Qh3 {[%clk 0:00:10]}  Rf3 {[%clk 0:00:20]} 41. Kh2 {[%clk 0:00:04]}  Rxe3 {[%clk 0:00:21]} 42. Qg2 {[%clk 0:00:04]}  Rd5 {[%clk 0:00:17]} 43. Rf1 {[%clk 0:00:03]}  Rexd3 {[%clk 0:00:15]} 44. Rxd3 {[%clk 0:00:02]}  Rxd3 {[%clk 0:00:16]} 45. Qa8+ {[%clk 0:00:02]}  Rd8 {[%clk 0:00:13]} 46. Qg2 {[%clk 0:00:03]}  Qd7 {[%clk 0:00:12]} 47. Rf2 {[%clk 0:00:04]}  Qxa4 {[%clk 0:00:12]} 48. Qf3 {[%clk 0:00:04]}  Qd7 {[%clk 0:00:10]} 49. Qxh5 {[%clk 0:00:04]}  g6 {[%clk 0:00:11]} 50. Qh6 {[%clk 0:00:04]}  Qd5 {[%clk 0:00:09]} 51. Qf4 {[%clk 0:00:03]}  Rf8 {[%clk 0:00:08]} 52. Qh6 {[%clk 0:00:02]}  a5 {[%clk 0:00:05]} 53. Qe3 {[%clk 0:00:03]}  b5 {[%clk 0:00:06]} 54. Qe2 {[%clk 0:00:03]}  b4 {[%clk 0:00:05]} 55. Qb5 {[%clk 0:00:03]}  bxc3 {[%clk 0:00:03]} 56. bxc3 {[%clk 0:00:04]}  Qe5 {[%clk 0:00:03]} 57. Qxa5 {[%clk 0:00:03]}  Kg7 {[%clk 0:00:03]} 58. Kg2 {[%clk 0:00:04]}  Qd5+ {[%clk 0:00:03]} 59. Kh2 {[%clk 0:00:03]}  Ra8 {[%clk 0:00:04]} 60. Qb5 {[%clk 0:00:03]}  Ra1 {[%clk 0:00:03]} 61. Rf1 {[%clk 0:00:04]}  Ra2+ {[%clk 0:00:03]} 62. Kh3 {[%clk 0:00:04]}  Qg2+ {[%clk 0:00:03]} 63. Kg4 {[%clk 0:00:04]}  Qe4+ {[%clk 0:00:03]} 64. Rf4 {[%clk 0:00:04]}  Qe5 {[%clk 0:00:02]} 65. Qd3 {[%clk 0:00:04]}  Qh5+ {[%clk 0:00:02]} 66. Kh3 {[%clk 0:00:04]}  Ra1 {[%clk 0:00:02]} 67. Qf3 {[%clk 0:00:04]}  Qxf3 {[%clk 0:00:01]} 68. Rxf3 {[%clk 0:00:05]}  Rd1 {[%clk 0:00:02]} 69. Kg4 {[%clk 0:00:06]}  Rc1 {[%clk 0:00:02]} 70. Kf4 {[%clk 0:00:06]}  Kf6 {[%clk 0:00:02]} 71. Ke4+ {[%clk 0:00:07]}  Ke7 {[%clk 0:00:03]} 72. Ke5 {[%clk 0:00:07]}  f6+ {[%clk 0:00:03]} 73. Kf4 {[%clk 0:00:08]}  e5+ {[%clk 0:00:03]} 74. Kg4 {[%clk 0:00:08]}  Ke6 {[%clk 0:00:04]} 75. h5 {[%clk 0:00:09]}  gxh5+ {[%clk 0:00:05]} 76. Kxh5 {[%clk 0:00:09]}  f5 {[%clk 0:00:05]} 77. Kg5 {[%clk 0:00:10]}  Rg1 {[%clk 0:00:03]} 78. Rd3 {[%clk 0:00:07]}  e4 {[%clk 0:00:03]} 79. Re3 {[%clk 0:00:07]}  Ke5 {[%clk 0:00:04]} 80. Kh4 {[%clk 0:00:07]}  Rh1+ {[%clk 0:00:03]} 81. Kg5 {[%clk 0:00:07]}  Rg1 {[%clk 0:00:04]} 82. Kh4 {[%clk 0:00:07]}  f4 {[%clk 0:00:04]} 83. gxf4+ {[%clk 0:00:08]}  Kxf4 {[%clk 0:00:05]} 84. Re2 {[%clk 0:00:07]}  Rh1+ {[%clk 0:00:06]} 0-1


[Site "https://www.chess.com"]